[Event "Early-Titled-Tuesday-Blitz-March-26-2024"]
[Site "Chess.com"]
[Date "2024.03.26"]
[Round "11"]
[White "PavelShkapenko"]
[Black "MalyDominator"]
[Result "1-0"]
[WhiteElo "2758"]
[BlackElo "2579"]
[TimeControl "180+1"]
[EndTime "10:05:11 PDT"]
[Termination "PavelShkapenko won by resignation"]

1. e4 {[%clk 0:03:00.9]} 1... c5 {[%clk 0:02:59.4]} 2. Nc3 {[%clk 0:03:00]} 2...
Nc6 {[%clk 0:02:59.1]} 3. g3 {[%clk 0:02:59.6]} 3... g6 {[%clk 0:02:59.6]} 4.
Bg2 {[%clk 0:03:00.1]} 4... Bg7 {[%clk 0:03:00.2]} 5. d3 {[%clk 0:03:00.8]} 5...
e6 {[%clk 0:03:00.8]} 6. Be3 {[%clk 0:02:59.9]} 6... d6 {[%clk 0:03:01.1]} 7.
Qd2 {[%clk 0:03:00]} 7... Nd4 {[%clk 0:02:59.5]} 8. Nce2 {[%clk 0:02:50.5]} 8...
Ne7 {[%clk 0:02:57.3]} 9. c3 {[%clk 0:02:50.4]} 9... Nxe2 {[%clk 0:02:57]} 10.
Nxe2 {[%clk 0:02:50.6]} 10... Rb8 {[%clk 0:02:57.6]} 11. Bh6 {[%clk 0:02:46.7]}
11... O-O {[%clk 0:02:56.8]} 12. h4 {[%clk 0:02:46.8]} 12... f6 {[%clk
0:02:48.5]} 13. Bxg7 {[%clk 0:02:33.6]} 13... Kxg7 {[%clk 0:02:47.3]} 14. h5
{[%clk 0:02:34.5]} 14... g5 {[%clk 0:02:47.2]} 15. h6+ {[%clk 0:02:34.6]} 15...
Kh8 {[%clk 0:02:47.4]} 16. f4 {[%clk 0:02:35.3]} 16... Ng6 {[%clk 0:02:36.9]}
17. O-O-O {[%clk 0:02:20.8]} 17... b5 {[%clk 0:02:36.3]} 18. e5 {[%clk 0:02:16]}
18... dxe5 {[%clk 0:02:34.5]} 19. fxg5 {[%clk 0:02:15.6]} 19... fxg5 {[%clk
0:02:33.9]} 20. Rdf1 {[%clk 0:02:04.8]} 20... Rxf1+ {[%clk 0:02:26.4]} 21. Rxf1
{[%clk 0:02:04.4]} 21... Qe7 {[%clk 0:02:26.7]} 22. Be4 {[%clk 0:02:02.7]} 22...
Bb7 {[%clk 0:02:24.7]} 23. Bxg6 {[%clk 0:01:56.4]} 23... hxg6 {[%clk 0:02:24.3]}
24. Qe3 {[%clk 0:01:57]} 24... e4 {[%clk 0:02:19.5]} 25. d4 {[%clk 0:01:28.5]}
25... cxd4 {[%clk 0:02:05]} 26. Nxd4 {[%clk 0:01:24]} 26... e5 {[%clk
0:02:02.6]} 27. Nb3 {[%clk 0:01:08.6]} 27... Rf8 {[%clk 0:01:45]} 28. Rxf8+
{[%clk 0:01:04.7]} 28... Qxf8 {[%clk 0:01:45.9]} 29. Nd2 {[%clk 0:01:04.7]}
29... Qe7 {[%clk 0:01:37.9]} 30. Qxa7 {[%clk 0:01:02.8]} 30... Qf7 {[%clk
0:01:05.6]} 31. Qb8+ {[%clk 0:00:53.6]} 31... Kh7 {[%clk 0:01:05.2]} 32. Qxe5
{[%clk 0:00:54.2]} 32... Kxh6 {[%clk 0:00:54.2]} 33. Qh8+ {[%clk 0:00:48.1]}
33... Qh7 {[%clk 0:00:54.2]} 34. Qxh7+ {[%clk 0:00:48.3]} 34... Kxh7 {[%clk
0:00:54.4]} 35. Nf1 {[%clk 0:00:48.9]} 35... Kg7 {[%clk 0:00:44.7]} 36. Kd2
{[%clk 0:00:47.8]} 36... Kf6 {[%clk 0:00:45.1]} 37. Ke3 {[%clk 0:00:38.1]} 37...
Kf5 {[%clk 0:00:45]} 38. Kf2 {[%clk 0:00:38.1]} 38... Ke5 {[%clk 0:00:29.2]} 39.
Ne3 {[%clk 0:00:37.3]} 39... Bc8 {[%clk 0:00:29.6]} 40. a3 {[%clk 0:00:35.5]}
40... Be6 {[%clk 0:00:28.7]} 41. Nc2 {[%clk 0:00:35.2]} 41... Kd5 {[%clk
0:00:17.3]} 42. Nd4 {[%clk 0:00:34.4]} 42... Bd7 {[%clk 0:00:14]} 43. b3 {[%clk
0:00:29.9]} 43... Bg4 {[%clk 0:00:06]} 44. Nc2 {[%clk 0:00:25.1]} 44... Kc5
{[%clk 0:00:04.2]} 45. Ke3 {[%clk 0:00:22.8]} 45... Bd1 {[%clk 0:00:03.9]} 46.
Nd4 {[%clk 0:00:23.1]} 46... Bxb3 {[%clk 0:00:01.7]} 47. Nxb3+ {[%clk
0:00:22.1]} 47... Kc4 {[%clk 0:00:02.3]} 48. Nd4 {[%clk 0:00:22.1]} 48... Kxc3
{[%clk 0:00:03]} 49. Nxb5+ {[%clk 0:00:22.3]} 49... Kb3 {[%clk 0:00:03.6]} 50.
Kxe4 {[%clk 0:00:22.3]} 1-0

[Event "Early-Titled-Tuesday-Blitz-March-26-2024"]
[Site "Chess.com"]
[Date "2024.03.26"]
[Round "11"]
[White "InitiatingASC"]
[Black "ChelsieMonica"]
[Result "0-1"]
[WhiteElo "2375"]
[BlackElo "2551"]
[TimeControl "180+1"]
[EndTime "10:05:14 PDT"]
[Termination "ChelsieMonica won by checkmate"]

1. d4 {[%clk 0:03:00.9]} 1... Nf6 {[%clk 0:02:57.7]} 2. c4 {[%clk 0:03:01.2]}
2... b6 {[%clk 0:02:58.1]} 3. Nc3 {[%clk 0:03:00.2]} 3... Bb7 {[%clk 0:02:58.8]}
4. Nf3 {[%clk 0:02:59.2]} 4... g6 {[%clk 0:02:57.2]} 5. e3 {[%clk 0:02:57.2]}
5... Bg7 {[%clk 0:02:57.5]} 6. Be2 {[%clk 0:02:57.5]} 6... O-O {[%clk
0:02:57.9]} 7. O-O {[%clk 0:02:58.2]} 7... d6 {[%clk 0:02:57.7]} 8. b3 {[%clk
0:02:58.6]} 8... Re8 {[%clk 0:02:57.9]} 9. Bb2 {[%clk 0:02:59.3]} 9... Nbd7
{[%clk 0:02:57.3]} 10. Qc2 {[%clk 0:02:58.7]} 10... e5 {[%clk 0:02:57.6]} 11.
dxe5 {[%clk 0:02:57.7]} 11... Nxe5 {[%clk 0:02:56.8]} 12. Nxe5 {[%clk
0:02:56.4]} 12... dxe5 {[%clk 0:02:57.3]} 13. Rad1 {[%clk 0:02:55.9]} 13... Qc8
{[%clk 0:02:57.7]} 14. Rd2 {[%clk 0:02:51.2]} 14... a6 {[%clk 0:02:45.5]} 15.
Rfd1 {[%clk 0:02:50.7]} 15... h5 {[%clk 0:02:40.8]} 16. Nd5 {[%clk 0:02:47.6]}
16... h4 {[%clk 0:02:31.6]} 17. h3 {[%clk 0:02:44.2]} 17... Nh7 {[%clk
0:02:10.4]} 18. Ba3 {[%clk 0:02:28.7]} 18... Ng5 {[%clk 0:01:54.8]} 19. Ne7+
{[%clk 0:02:23.1]} 19... Rxe7 {[%clk 0:01:55.1]} 20. Bxe7 {[%clk 0:02:22.6]}
20... Nxh3+ {[%clk 0:01:55]} 21. Kh2 {[%clk 0:02:22.8]} 21... Qe6 {[%clk
0:01:53.1]} 22. Rd8+ {[%clk 0:02:12.6]} 22... Rxd8 {[%clk 0:01:52.2]} 23. Rxd8+
{[%clk 0:02:12.9]} 23... Kh7 {[%clk 0:01:51.9]} 24. Bxh4 {[%clk 0:02:11.2]}
24... Nxf2 {[%clk 0:01:39.7]} 25. Bxf2 {[%clk 0:02:02.5]} 25... Qf6 {[%clk
0:01:38.2]} 26. Rd2 {[%clk 0:01:22]} 26... Qxf2 {[%clk 0:01:34.5]} 27. Bd3
{[%clk 0:01:11.1]} 27... Qh4+ {[%clk 0:01:08.7]} 28. Kg1 {[%clk 0:01:10]} 28...
Bh6 {[%clk 0:00:49.9]} 29. Re2 {[%clk 0:00:08.3]} 29... e4 {[%clk 0:00:49.1]}
30. Bxe4 {[%clk 0:00:08.6]} 30... Bxe4 {[%clk 0:00:48.5]} 31. Qd2 {[%clk
0:00:09.2]} 31... Qg4 {[%clk 0:00:27.4]} 32. Kf2 {[%clk 0:00:08.8]} 32... Bg5
{[%clk 0:00:24.1]} 33. Kf1 {[%clk 0:00:08]} 33... Qh4 {[%clk 0:00:21.8]} 34. Kg1
{[%clk 0:00:07.8]} 34... Qg4 {[%clk 0:00:20.2]} 35. Rf2 {[%clk 0:00:06.9]} 35...
c5 {[%clk 0:00:17.4]} 36. Rxf7+ {[%clk 0:00:06.7]} 36... Kh6 {[%clk 0:00:17.4]}
37. Rf2 {[%clk 0:00:05.8]} 37... Bh4 {[%clk 0:00:16.5]} 38. Re2 {[%clk
0:00:05.9]} 38... Qg3 {[%clk 0:00:16.3]} 39. Qd7 {[%clk 0:00:03.5]} 39... Bf5
{[%clk 0:00:15]} 40. Qe8 {[%clk 0:00:02.2]} 40... Bf6 {[%clk 0:00:13.8]} 41.
Qf8+ {[%clk 0:00:02.1]} 41... Bg7 {[%clk 0:00:14.2]} 42. Qd8 {[%clk 0:00:02.5]}
42... Kh7 {[%clk 0:00:13.6]} 43. Qxb6 {[%clk 0:00:02.4]} 43... Bd3 {[%clk
0:00:13.2]} 44. Rd2 {[%clk 0:00:02.3]} 44... Qxe3+ {[%clk 0:00:13]} 45. Kh2
{[%clk 0:00:03]} 45... Be5+ {[%clk 0:00:12.3]} 46. Kh1 {[%clk 0:00:02.1]} 46...
Qe1# {[%clk 0:00:12.4]} 0-1

[Event "Early-Titled-Tuesday-Blitz-March-26-2024"]
[Site "Chess.com"]
[Date "2024.03.26"]
[Round "11"]
[White "suyu28"]
[Black "xasid81"]
[Result "1-0"]
[WhiteElo "2845"]
[BlackElo "2601"]
[TimeControl "180+1"]
[EndTime "10:05:17 PDT"]
[Termination "suyu28 won by resignation"]

1. e4 {[%clk 0:02:58.2]} 1... c6 {[%clk 0:03:00.2]} 2. d4 {[%clk 0:02:53.2]}
2... d5 {[%clk 0:03:01.1]} 3. Nc3 {[%clk 0:02:47.5]} 3... dxe4 {[%clk
0:03:00.6]} 4. Nxe4 {[%clk 0:02:47.3]} 4... Nf6 {[%clk 0:03:01.4]} 5. Nxf6+
{[%clk 0:02:47.1]} 5... exf6 {[%clk 0:03:02.3]} 6. c3 {[%clk 0:02:46.5]} 6...
Bd6 {[%clk 0:03:01.2]} 7. Bd3 {[%clk 0:02:46.1]} 7... O-O {[%clk 0:02:53.7]} 8.
Qc2 {[%clk 0:02:46.3]} 8... Re8+ {[%clk 0:02:46]} 9. Ne2 {[%clk 0:02:46.8]} 9...
h5 {[%clk 0:02:46.6]} 10. O-O {[%clk 0:02:43.1]} 10... Na6 {[%clk 0:02:32.1]}
11. Nf4 {[%clk 0:02:33.6]} 11... h4 {[%clk 0:02:31.1]} 12. Qd1 {[%clk
0:02:34.1]} 12... g6 {[%clk 0:02:17.5]} 13. Nxg6 {[%clk 0:02:31.3]} 13... fxg6
{[%clk 0:02:17.6]} 14. Bxg6 {[%clk 0:02:32]} 14... Kg7 {[%clk 0:02:10.8]} 15.
Bxe8 {[%clk 0:02:12]} 15... Qxe8 {[%clk 0:02:11.7]} 16. Qf3 {[%clk 0:02:06.5]}
16... Qg6 {[%clk 0:02:08.4]} 17. h3 {[%clk 0:01:47.5]} 17... Bf5 {[%clk
0:02:02.3]} 18. Re1 {[%clk 0:01:47.2]} 18... Nc7 {[%clk 0:02:01.2]} 19. Kh1
{[%clk 0:01:45.1]} 19... Re8 {[%clk 0:01:58.8]} 20. Rxe8 {[%clk 0:01:43.2]}
20... Nxe8 {[%clk 0:01:59.7]} 21. Qe2 {[%clk 0:01:37.8]} 21... Be4 {[%clk
0:01:48.4]} 22. Qf1 {[%clk 0:01:37.3]} 22... f5 {[%clk 0:01:44]} 23. Bd2 {[%clk
0:01:30.5]} 23... Nf6 {[%clk 0:01:42.6]} 24. Re1 {[%clk 0:01:27.8]} 24... b5
{[%clk 0:01:40.2]} 25. Bc1 {[%clk 0:01:23.4]} 25... Nh5 {[%clk 0:01:32.7]} 26.
Kg1 {[%clk 0:00:54.6]} 26... Bf4 {[%clk 0:01:24.5]} 27. Be3 {[%clk 0:00:31.4]}
27... Bxe3 {[%clk 0:01:17.1]} 28. fxe3 {[%clk 0:00:22.6]} 28... Qg3 {[%clk
0:01:12.1]} 29. Qf2 {[%clk 0:00:20]} 29... a5 {[%clk 0:01:04.8]} 30. b3 {[%clk
0:00:17.7]} 30... Kg6 {[%clk 0:01:03.8]} 31. c4 {[%clk 0:00:17.6]} 31... b4
{[%clk 0:01:03.1]} 32. Rd1 {[%clk 0:00:15.7]} 32... Qg5 {[%clk 0:00:56.1]} 33.
d5 {[%clk 0:00:14.5]} 33... cxd5 {[%clk 0:00:57]} 34. cxd5 {[%clk 0:00:15.2]}
34... f4 {[%clk 0:00:57.6]} 35. d6 {[%clk 0:00:08.6]} 35... fxe3 {[%clk
0:00:52.7]} 36. Qb2 {[%clk 0:00:08.3]} 36... Nf4 {[%clk 0:00:47.3]} 37. d7
{[%clk 0:00:08.1]} 37... Nxh3+ {[%clk 0:00:36.1]} 38. Kf1 {[%clk 0:00:03.9]}
38... Qf4+ {[%clk 0:00:17.7]} 39. Ke1 {[%clk 0:00:04.4]} 39... Qg3+ {[%clk
0:00:18]} 40. Kf1 {[%clk 0:00:04.9]} 40... Qf4+ {[%clk 0:00:16.4]} 41. Ke1
{[%clk 0:00:04.2]} 41... Qg3+ {[%clk 0:00:15.2]} 42. Kf1 {[%clk 0:00:04.8]}
42... Nf4 {[%clk 0:00:15.2]} 43. Rd6+ {[%clk 0:00:03.8]} 43... Kh5 {[%clk
0:00:14.2]} 44. Qh8+ {[%clk 0:00:02.3]} 44... Kg4 {[%clk 0:00:13.9]} 45. Qg7+
{[%clk 0:00:02.3]} 45... Ng6 {[%clk 0:00:14.1]} 46. Rxg6+ {[%clk 0:00:02]} 46...
Bxg6 {[%clk 0:00:15]} 47. Qxg6+ {[%clk 0:00:02.9]} 47... Kf4 {[%clk 0:00:15.9]}
48. Qxg3+ {[%clk 0:00:03.2]} 1-0

[Event "Early-Titled-Tuesday-Blitz-March-26-2024"]
[Site "Chess.com"]
[Date "2024.03.26"]
[Round "11"]
[White "FormerProdigy"]
[Black "FairChess_on_YouTube"]
[Result "0-1"]
[WhiteElo "2976"]
[BlackElo "3120"]
[TimeControl "180+1"]
[EndTime "10:05:20 PDT"]
[Termination "FairChess_on_YouTube won by checkmate"]

1. d4 {[%clk 0:03:00.9]} 1... Nf6 {[%clk 0:02:59.3]} 2. c4 {[%clk 0:03:01.4]}
2... c5 {[%clk 0:02:59.9]} 3. d5 {[%clk 0:03:01.3]} 3... b5 {[%clk 0:03:00.5]}
4. cxb5 {[%clk 0:03:02.2]} 4... a6 {[%clk 0:03:01.1]} 5. bxa6 {[%clk 0:03:03.1]}
5... Bxa6 {[%clk 0:03:00.4]} 6. Nc3 {[%clk 0:03:03.8]} 6... g6 {[%clk
0:03:00.3]} 7. e4 {[%clk 0:03:03.8]} 7... Bxf1 {[%clk 0:03:00.3]} 8. Kxf1 {[%clk
0:03:04.7]} 8... d6 {[%clk 0:03:00.9]} 9. g3 {[%clk 0:03:05]} 9... Bg7 {[%clk
0:03:01.4]} 10. Nf3 {[%clk 0:03:04.9]} 10... O-O {[%clk 0:03:01.6]} 11. Kg2
{[%clk 0:03:05.5]} 11... Nbd7 {[%clk 0:03:02.2]} 12. a4 {[%clk 0:03:04.2]} 12...
Ng4 {[%clk 0:03:00.1]} 13. Qe2 {[%clk 0:02:48.2]} 13... Qb8 {[%clk 0:02:50.8]}
14. Bg5 {[%clk 0:02:28.6]} 14... Re8 {[%clk 0:02:46]} 15. Nb5 {[%clk 0:02:19.4]}
15... Qb7 {[%clk 0:02:38.7]} 16. h3 {[%clk 0:02:05.3]} 16... Nge5 {[%clk
0:02:37.5]} 17. Nxe5 {[%clk 0:02:05.9]} 17... Nxe5 {[%clk 0:02:33.7]} 18. b3
{[%clk 0:01:55.7]} 18... f5 {[%clk 0:02:22.5]} 19. Rad1 {[%clk 0:01:52.7]} 19...
Nf7 {[%clk 0:02:18.6]} 20. Bc1 {[%clk 0:01:24.8]} 20... e6 {[%clk 0:02:15.2]}
21. exf5 {[%clk 0:01:23.8]} 21... exd5 {[%clk 0:01:53]} 22. Qf3 {[%clk 0:01:22]}
22... Re5 {[%clk 0:01:39.6]} 23. fxg6 {[%clk 0:01:18.8]} 23... hxg6 {[%clk
0:01:39.2]} 24. Bf4 {[%clk 0:01:17.3]} 24... Rf5 {[%clk 0:01:36.4]} 25. Qg4
{[%clk 0:00:49.7]} 25... d4+ {[%clk 0:01:30]} 26. f3 {[%clk 0:00:50.2]} 26...
Rf8 {[%clk 0:00:53.6]} 27. Qxg6 {[%clk 0:00:39.1]} 27... Ne5 {[%clk 0:00:45.1]}
28. Qe6+ {[%clk 0:00:39.5]} 28... Kh7 {[%clk 0:00:44.5]} 29. Rhf1 {[%clk
0:00:38.5]} 29... R8f6 {[%clk 0:00:35.7]} 30. Nxd6 {[%clk 0:00:29.7]} 30... Qa6
{[%clk 0:00:22.6]} 31. Qxf5+ {[%clk 0:00:26.8]} 31... Rxf5 {[%clk 0:00:22.5]}
32. Nxf5 {[%clk 0:00:27.7]} 32... Qe2+ {[%clk 0:00:22.7]} 33. Rf2 {[%clk
0:00:18.9]} 33... Qxd1 {[%clk 0:00:21.9]} 34. Nxg7 {[%clk 0:00:19.8]} 34... Nd3
{[%clk 0:00:20.1]} 35. Ne6 {[%clk 0:00:20.1]} 35... Nxf2 {[%clk 0:00:19.8]} 36.
Kxf2 {[%clk 0:00:21]} 36... Qc2+ {[%clk 0:00:19.8]} 37. Kg1 {[%clk 0:00:16.9]}
37... Qxb3 {[%clk 0:00:17.6]} 38. Ng5+ {[%clk 0:00:12]} 38... Kg6 {[%clk
0:00:16.9]} 39. Ne4 {[%clk 0:00:12.9]} 39... Qd1+ {[%clk 0:00:14.2]} 40. Kf2
{[%clk 0:00:12.6]} 40... Qc2+ {[%clk 0:00:14.3]} 41. Ke1 {[%clk 0:00:11.3]}
41... c4 {[%clk 0:00:12.4]} 42. h4 {[%clk 0:00:06.8]} 42... c3 {[%clk
0:00:12.7]} 43. g4 {[%clk 0:00:06.2]} 43... d3 {[%clk 0:00:12.4]} 44. h5+ {[%clk
0:00:06.5]} 44... Kh7 {[%clk 0:00:12.7]} 45. g5 {[%clk 0:00:02.8]} 45... Qe2#
{[%clk 0:00:12.2]} 0-1

[Event "Early-Titled-Tuesday-Blitz-March-26-2024"]
[Site "Chess.com"]
[Date "2024.03.26"]
[Round "11"]
[White "DCacheiro"]
[Black "alekroth65"]
[Result "1-0"]
[WhiteElo "2504"]
[BlackElo "2390"]
[TimeControl "180+1"]
[EndTime "10:05:20 PDT"]
[Termination "DCacheiro won on time"]

1. e4 {[%clk 0:03:00.9]} 1... d6 {[%clk 0:02:58.1]} 2. d4 {[%clk 0:03:00.4]}
2... Nf6 {[%clk 0:02:58.4]} 3. Nc3 {[%clk 0:03:00.5]} 3... g6 {[%clk 0:02:58.3]}
4. Nf3 {[%clk 0:02:59.7]} 4... Bg7 {[%clk 0:02:58.2]} 5. Be2 {[%clk 0:03:00.4]}
5... O-O {[%clk 0:02:57.9]} 6. O-O {[%clk 0:03:01.2]} 6... Nc6 {[%clk
0:02:57.1]} 7. d5 {[%clk 0:03:00.9]} 7... Nb8 {[%clk 0:02:56.9]} 8. Be3 {[%clk
0:03:01.4]} 8... c6 {[%clk 0:02:57]} 9. a4 {[%clk 0:02:58.5]} 9... Nbd7 {[%clk
0:02:47.9]} 10. a5 {[%clk 0:02:54.8]} 10... cxd5 {[%clk 0:02:37.6]} 11. exd5
{[%clk 0:02:53.4]} 11... Nc5 {[%clk 0:02:26.9]} 12. b4 {[%clk 0:02:27.8]} 12...
Nfe4 {[%clk 0:02:17.5]} 13. Nxe4 {[%clk 0:02:28]} 13... Nxe4 {[%clk 0:02:15.8]}
14. Bd4 {[%clk 0:02:28]} 14... Nc3 {[%clk 0:02:11.8]} 15. Qd2 {[%clk 0:02:22.1]}
15... Nxe2+ {[%clk 0:02:09.7]} 16. Qxe2 {[%clk 0:02:23]} 16... Bg4 {[%clk
0:02:00.4]} 17. Bxg7 {[%clk 0:02:21.5]} 17... Kxg7 {[%clk 0:02:01.3]} 18. Rac1
{[%clk 0:02:00.6]} 18... Qd7 {[%clk 0:01:49.5]} 19. h3 {[%clk 0:01:54.5]} 19...
Bxf3 {[%clk 0:01:48.1]} 20. Qxf3 {[%clk 0:01:55.4]} 20... Qb5 {[%clk 0:01:46]}
21. Qb3 {[%clk 0:01:50.7]} 21... Rac8 {[%clk 0:01:16.3]} 22. c4 {[%clk
0:01:49.9]} 22... Qd7 {[%clk 0:01:16]} 23. Rfe1 {[%clk 0:01:49.7]} 23... Rfe8
{[%clk 0:01:15.1]} 24. Re4 {[%clk 0:01:34.5]} 24... Qf5 {[%clk 0:01:09.8]} 25.
Rce1 {[%clk 0:01:19]} 25... Rc7 {[%clk 0:00:56.7]} 26. Qb2+ {[%clk 0:01:09]}
26... Qf6 {[%clk 0:00:54.7]} 27. Qxf6+ {[%clk 0:01:09.2]} 27... Kxf6 {[%clk
0:00:54.7]} 28. Rf4+ {[%clk 0:00:44]} 28... Kg7 {[%clk 0:00:53.2]} 29. Rfe4
{[%clk 0:00:33.1]} 29... Kf6 {[%clk 0:00:53.3]} 30. Kf1 {[%clk 0:00:29]} 30...
Rec8 {[%clk 0:00:51.1]} 31. Rf4+ {[%clk 0:00:29.2]} 31... Kg7 {[%clk 0:00:51.3]}
32. Rc1 {[%clk 0:00:26.9]} 32... f5 {[%clk 0:00:46]} 33. Ke2 {[%clk 0:00:25.6]}
33... b5 {[%clk 0:00:45.4]} 34. axb6 {[%clk 0:00:25.3]} 34... axb6 {[%clk
0:00:46.3]} 35. Rd4 {[%clk 0:00:19.8]} 35... b5 {[%clk 0:00:37.4]} 36. Kd2
{[%clk 0:00:16.6]} 36... bxc4 {[%clk 0:00:31.6]} 37. Re1 {[%clk 0:00:13.5]}
37... c3+ {[%clk 0:00:29.6]} 38. Kc2 {[%clk 0:00:13.7]} 38... Kf7 {[%clk
0:00:29.5]} 39. Re3 {[%clk 0:00:13.2]} 39... Rc4 {[%clk 0:00:19.6]} 40. Red3
{[%clk 0:00:08]} 40... Kf6 {[%clk 0:00:15.1]} 41. f4 {[%clk 0:00:06.6]} 41...
R4c7 {[%clk 0:00:12.8]} 42. Re3 {[%clk 0:00:06.4]} 42... Ra7 {[%clk 0:00:09.7]}
43. Rxc3 {[%clk 0:00:06.6]} 43... Ra2+ {[%clk 0:00:01.6]} 44. Kb3 {[%clk
0:00:07]} 44... Rxc3+ {[%clk 0:00:01.4]} 45. Kxc3 {[%clk 0:00:07.5]} 45... Rxg2
{[%clk 0:00:01.7]} 46. b5 {[%clk 0:00:07.8]} 46... Rg3+ {[%clk 0:00:01.3]} 47.
Rd3 {[%clk 0:00:07.4]} 1-0

[Event "Early-Titled-Tuesday-Blitz-March-26-2024"]
[Site "Chess.com"]
[Date "2024.03.26"]
[Round "11"]
[White "Hikaru"]
[Black "DenLaz"]
[Result "1/2-1/2"]
[WhiteElo "3265"]
[BlackElo "3111"]
[TimeControl "180+1"]
[EndTime "10:05:27 PDT"]
[Termination "Game drawn by repetition"]

1. Nf3 {[%clk 0:03:00.9]} 1... d5 {[%clk 0:03:00]} 2. e3 {[%clk 0:02:59]} 2...
Nf6 {[%clk 0:03:00.4]} 3. c4 {[%clk 0:02:59.4]} 3... e6 {[%clk 0:03:01.1]} 4. b3
{[%clk 0:02:59.6]} 4... Be7 {[%clk 0:03:00.9]} 5. Bb2 {[%clk 0:03:00.2]} 5...
O-O {[%clk 0:03:01.6]} 6. d4 {[%clk 0:03:00.8]} 6... b6 {[%clk 0:03:00.1]} 7.
cxd5 {[%clk 0:03:00.7]} 7... Nxd5 {[%clk 0:03:00.1]} 8. a3 {[%clk 0:02:58]} 8...
Bb7 {[%clk 0:03:00.4]} 9. Nbd2 {[%clk 0:02:57.5]} 9... Nd7 {[%clk 0:03:00.7]}
10. b4 {[%clk 0:02:55.1]} 10... c5 {[%clk 0:02:57.8]} 11. dxc5 {[%clk
0:02:46.3]} 11... bxc5 {[%clk 0:02:58.7]} 12. b5 {[%clk 0:02:46.8]} 12... Bf6
{[%clk 0:02:58]} 13. Qc2 {[%clk 0:02:36.9]} 13... a6 {[%clk 0:02:55.5]} 14. bxa6
{[%clk 0:02:36.3]} 14... Bxa6 {[%clk 0:02:54.9]} 15. Bxa6 {[%clk 0:02:36.6]}
15... Rxa6 {[%clk 0:02:55.8]} 16. O-O {[%clk 0:02:33.5]} 16... Bxb2 {[%clk
0:02:53.4]} 17. Qxb2 {[%clk 0:02:33.7]} 17... Qa8 {[%clk 0:02:53.6]} 18. Nc4
{[%clk 0:02:27.4]} 18... N7b6 {[%clk 0:02:50.5]} 19. Nfd2 {[%clk 0:02:22.7]}
19... Nxc4 {[%clk 0:02:47]} 20. Nxc4 {[%clk 0:02:23.6]} 20... Ra4 {[%clk
0:02:45.4]} 21. Rfc1 {[%clk 0:02:19.4]} 21... Qa6 {[%clk 0:02:45]} 22. Qb3
{[%clk 0:02:11.4]} 22... h6 {[%clk 0:02:39.5]} 23. Rab1 {[%clk 0:02:04.5]} 23...
Ra8 {[%clk 0:02:14.9]} 24. h3 {[%clk 0:01:42]} 24... Qc6 {[%clk 0:02:03.8]} 25.
Qc2 {[%clk 0:01:38.1]} 25... R4a6 {[%clk 0:01:54.1]} 26. Qb3 {[%clk 0:01:37.3]}
26... Nb6 {[%clk 0:01:02.6]} 27. Nd2 {[%clk 0:00:40.7]} 27... Nd7 {[%clk
0:00:56.2]} 28. Ra1 {[%clk 0:00:39.5]} 28... Ne5 {[%clk 0:00:51.3]} 29. Rc3
{[%clk 0:00:39]} 29... Ra4 {[%clk 0:00:38.7]} 30. Qc2 {[%clk 0:00:38.3]} 30...
Nd7 {[%clk 0:00:13.6]} 31. Nc4 {[%clk 0:00:38.2]} 31... R4a6 {[%clk 0:00:10.4]}
32. Rb1 {[%clk 0:00:32.9]} 32... Nf6 {[%clk 0:00:09.7]} 33. Rcb3 {[%clk
0:00:32.3]} 33... Qe4 {[%clk 0:00:08.8]} 34. Qe2 {[%clk 0:00:31.1]} 34... g6
{[%clk 0:00:07.3]} 35. f3 {[%clk 0:00:30.6]} 35... Qh4 {[%clk 0:00:06.3]} 36. e4
{[%clk 0:00:22.1]} 36... Nh5 {[%clk 0:00:06]} 37. Qf2 {[%clk 0:00:18]} 37...
Qxf2+ {[%clk 0:00:03.8]} 38. Kxf2 {[%clk 0:00:18.9]} 38... Kg7 {[%clk
0:00:03.5]} 39. Rb7 {[%clk 0:00:18.5]} 39... Nf4 {[%clk 0:00:02.8]} 40. Rd1
{[%clk 0:00:16.2]} 40... R8a7 {[%clk 0:00:02.5]} 41. Rdd7 {[%clk 0:00:11.8]}
41... Rxb7 {[%clk 0:00:03]} 42. Rxb7 {[%clk 0:00:12.7]} 42... Kf6 {[%clk
0:00:02.7]} 43. h4 {[%clk 0:00:10.4]} 43... g5 {[%clk 0:00:03]} 44. g3 {[%clk
0:00:09.9]} 44... Nd3+ {[%clk 0:00:02.8]} 45. Ke3 {[%clk 0:00:04]} 45... Ne5
{[%clk 0:00:03.7]} 46. hxg5+ {[%clk 0:00:04.3]} 46... hxg5 {[%clk 0:00:03.9]}
47. Nxe5 {[%clk 0:00:04.7]} 47... Kxe5 {[%clk 0:00:04.8]} 48. Rxf7 {[%clk
0:00:05.2]} 48... Rxa3+ {[%clk 0:00:05.5]} 49. Kf2 {[%clk 0:00:05.9]} 49... Ra2+
{[%clk 0:00:06.2]} 50. Ke3 {[%clk 0:00:06]} 50... Ra3+ {[%clk 0:00:06.7]} 51.
Kf2 {[%clk 0:00:05.5]} 51... Ra2+ {[%clk 0:00:07.3]} 52. Ke3 {[%clk 0:00:05.4]}
52... Ra3+ {[%clk 0:00:08]} 1/2-1/2